[Event "Early-Titled-Tuesday-Blitz-May-07-2024"]
[Site "Chess.com"]
[Date "2024.05.07"]
[Round "11"]
[White "Barbix1"]
[Black "viktorgen2021"]
[Result "0-1"]
[WhiteElo "2304"]
[BlackElo "2503"]
[TimeControl "180+1"]
[EndTime "10:14:35 PDT"]
[Termination "viktorgen2021 won on time"]

1. d4 {[%clk 0:03:00.9]} 1... Nf6 {[%clk 0:02:59]} 2. c4 {[%clk 0:03:00.7]} 2...
g6 {[%clk 0:02:58.7]} 3. Nc3 {[%clk 0:02:57]} 3... Bg7 {[%clk 0:02:59]} 4. e4
{[%clk 0:02:57.1]} 4... d6 {[%clk 0:02:58.9]} 5. h3 {[%clk 0:02:56.7]} 5... O-O
{[%clk 0:02:58.3]} 6. Be3 {[%clk 0:02:56.9]} 6... c6 {[%clk 0:02:57.9]} 7. Nf3
{[%clk 0:02:39.8]} 7... Qc7 {[%clk 0:02:55.7]} 8. Nd2 {[%clk 0:02:38.7]} 8... e5
{[%clk 0:02:54.6]} 9. d5 {[%clk 0:02:36.9]} 9... a5 {[%clk 0:02:41.2]} 10. Be2
{[%clk 0:02:30.3]} 10... Na6 {[%clk 0:02:37.1]} 11. g4 {[%clk 0:02:26.4]} 11...
Nd7 {[%clk 0:02:35]} 12. h4 {[%clk 0:02:17.2]} 12... Ndc5 {[%clk 0:02:32.8]} 13.
h5 {[%clk 0:02:16.8]} 13... Nb4 {[%clk 0:02:26.1]} 14. Qb1 {[%clk 0:02:09.1]}
14... f5 {[%clk 0:02:19.5]} 15. hxg6 {[%clk 0:02:06.8]} 15... hxg6 {[%clk
0:02:18.5]} 16. gxf5 {[%clk 0:02:05.9]} 16... gxf5 {[%clk 0:02:17.9]} 17. Bxc5
{[%clk 0:02:04.5]} 17... dxc5 {[%clk 0:02:15.2]} 18. a3 {[%clk 0:02:04.6]} 18...
Na6 {[%clk 0:02:13.3]} 19. Qd3 {[%clk 0:01:58.7]} 19... f4 {[%clk 0:02:09.1]}
20. O-O-O {[%clk 0:01:51.1]} 20... Qd6 {[%clk 0:01:55.8]} 21. Rdg1 {[%clk
0:01:46.7]} 21... Rf7 {[%clk 0:01:54]} 22. Bh5 {[%clk 0:01:37]} 22... Re7 {[%clk
0:01:45.2]} 23. Rg6 {[%clk 0:01:36.4]} 23... Qd8 {[%clk 0:01:42.2]} 24. Rhg1
{[%clk 0:01:30.9]} 24... b5 {[%clk 0:01:31.1]} 25. Nf3 {[%clk 0:01:23.5]} 25...
Nb4 {[%clk 0:01:24.9]} 26. Qf1 {[%clk 0:01:10.2]} 26... bxc4 {[%clk 0:01:24.4]}
27. Qg2 {[%clk 0:01:02.3]} 27... Raa7 {[%clk 0:01:22]} 28. Qg5 {[%clk
0:00:44.9]} 28... Nd3+ {[%clk 0:01:19.3]} 29. Kc2 {[%clk 0:00:43.8]} 29... Qb6
{[%clk 0:01:19.1]} 30. Nd1 {[%clk 0:00:16.4]} 30... Qb3+ {[%clk 0:01:17.2]} 31.
Kd2 {[%clk 0:00:16.6]} 31... Nxb2 {[%clk 0:01:14.3]} 32. Nxb2 {[%clk 0:00:09.8]}
32... c3+ {[%clk 0:01:10.8]} 33. Ke2 {[%clk 0:00:08.7]} 33... Qc2+ {[%clk
0:01:07.1]} 34. Kf1 {[%clk 0:00:08.2]} 34... cxb2 {[%clk 0:01:07.5]} 35. Kg2
{[%clk 0:00:06.8]} 35... b1=Q {[%clk 0:01:03.1]} 36. Rxb1 {[%clk 0:00:06.7]}
36... Qxb1 {[%clk 0:01:04]} 37. Nxe5 {[%clk 0:00:05.9]} 37... Qxe4+ {[%clk
0:01:03.8]} 38. Nf3 {[%clk 0:00:04.5]} 38... Bf5 {[%clk 0:01:00.6]} 39. Rf6
{[%clk 0:00:01.8]} 39... Bc8 {[%clk 0:00:40.7]} 40. d6 {[%clk 0:00:02]} 40...
Qd5 {[%clk 0:00:35.6]} 41. dxe7 {[%clk 0:00:00.1]} 41... Qxg5+ {[%clk
0:00:34.3]} 42. Nxg5 {[%clk 0:00:01]} 42... Rxe7 {[%clk 0:00:34.5]} 0-1

[Event "Early-Titled-Tuesday-Blitz-May-07-2024"]
[Site "Chess.com"]
[Date "2024.05.07"]
[Round "11"]
[White "FuenfgegenWilly"]
[Black "Ivan11Martic"]
[Result "0-1"]
[WhiteElo "2457"]
[BlackElo "2620"]
[TimeControl "180+1"]
[EndTime "10:14:36 PDT"]
[Termination "Ivan11Martic won by resignation"]

1. e4 {[%clk 0:03:00.9]} 1... c5 {[%clk 0:02:59.3]} 2. Nc3 {[%clk 0:03:01.2]}
2... Nc6 {[%clk 0:02:58.7]} 3. f4 {[%clk 0:03:01.4]} 3... e6 {[%clk 0:02:58.3]}
4. Nf3 {[%clk 0:03:02.3]} 4... a6 {[%clk 0:02:53.1]} 5. g3 {[%clk 0:03:01.2]}
5... d5 {[%clk 0:02:51.9]} 6. d3 {[%clk 0:03:01.7]} 6... b5 {[%clk 0:02:46.7]}
7. Bg2 {[%clk 0:03:01.2]} 7... d4 {[%clk 0:02:45.9]} 8. Ne2 {[%clk 0:03:00.8]}
8... Nf6 {[%clk 0:02:42.2]} 9. O-O {[%clk 0:03:00.7]} 9... Be7 {[%clk
0:02:41.4]} 10. h3 {[%clk 0:03:01.1]} 10... Bb7 {[%clk 0:02:41.1]} 11. g4 {[%clk
0:03:01.4]} 11... Nd7 {[%clk 0:02:37]} 12. Ng3 {[%clk 0:03:00.8]} 12... Qc7
{[%clk 0:02:31]} 13. e5 {[%clk 0:02:57.8]} 13... Nb6 {[%clk 0:02:29.4]} 14. Ne4
{[%clk 0:02:57.6]} 14... Nd5 {[%clk 0:02:28.9]} 15. Qe1 {[%clk 0:02:55.3]} 15...
h6 {[%clk 0:02:22.2]} 16. a3 {[%clk 0:02:54.5]} 16... O-O-O {[%clk 0:02:16.8]}
17. Qg3 {[%clk 0:02:53.9]} 17... f5 {[%clk 0:02:13.3]} 18. exf6 {[%clk 0:02:53]}
18... gxf6 {[%clk 0:02:13]} 19. Nh4 {[%clk 0:02:43.8]} 19... Rdg8 {[%clk
0:02:06.6]} 20. f5 {[%clk 0:02:41.7]} 20... e5 {[%clk 0:01:54.4]} 21. Ng6 {[%clk
0:02:33.3]} 21... Rh7 {[%clk 0:01:52.5]} 22. h4 {[%clk 0:02:29.9]} 22... Kb8
{[%clk 0:01:48.5]} 23. Nxc5 {[%clk 0:02:25.4]} 23... Bxc5 {[%clk 0:01:42.2]} 24.
Bxd5 {[%clk 0:02:24.7]} 24... Rd8 {[%clk 0:01:38.9]} 25. Be4 {[%clk 0:02:23.9]}
25... Ne7 {[%clk 0:01:33.2]} 26. Qf3 {[%clk 0:02:18.8]} 26... Bxe4 {[%clk
0:01:31.6]} 27. Qxe4 {[%clk 0:02:18.8]} 27... Bb6 {[%clk 0:01:28.7]} 28. Rf2
{[%clk 0:02:16.6]} 28... Nd5 {[%clk 0:01:24.3]} 29. g5 {[%clk 0:01:50.3]} 29...
hxg5 {[%clk 0:01:23.5]} 30. hxg5 {[%clk 0:01:51.2]} 30... Ne3 {[%clk 0:01:13.5]}
31. Bxe3 {[%clk 0:01:44.9]} 31... dxe3 {[%clk 0:01:14.4]} 32. Re2 {[%clk
0:01:45.4]} 32... fxg5 {[%clk 0:01:00.1]} 33. Rf1 {[%clk 0:00:50.1]} 33... Rd4
{[%clk 0:00:56.5]} 34. Qxe5 {[%clk 0:00:31.2]} 34... Rg4+ {[%clk 0:00:55.5]} 35.
Rg2 {[%clk 0:00:25.6]} 35... e2+ {[%clk 0:00:55.9]} 36. Rf2 {[%clk 0:00:21.1]}
36... e1=Q+ {[%clk 0:00:55]} 37. Qxe1 {[%clk 0:00:20.1]} 37... Rxg2+ {[%clk
0:00:52.7]} 38. Kxg2 {[%clk 0:00:16.6]} 38... Rh2+ {[%clk 0:00:52.5]} 39. Kf1
{[%clk 0:00:15.8]} 39... Rxf2+ {[%clk 0:00:50.8]} 40. Qxf2 {[%clk 0:00:14]}
40... Bxf2 {[%clk 0:00:50.6]} 41. Kxf2 {[%clk 0:00:14.5]} 41... Qh2+ {[%clk
0:00:48.2]} 42. Kf3 {[%clk 0:00:14.4]} 42... Qxc2 {[%clk 0:00:46.4]} 43. Ke4
{[%clk 0:00:13.3]} 43... Qe2+ {[%clk 0:00:44.2]} 44. Kd5 {[%clk 0:00:12.1]}
44... Qxd3+ {[%clk 0:00:44.1]} 45. Ke6 {[%clk 0:00:13]} 45... g4 {[%clk
0:00:44.2]} 46. Ne5 {[%clk 0:00:11.3]} 46... Qb3+ {[%clk 0:00:44]} 47. Ke7
{[%clk 0:00:10.2]} 47... g3 {[%clk 0:00:44.1]} 48. f6 {[%clk 0:00:10.6]} 48...
Qe3 {[%clk 0:00:37.3]} 49. Ke6 {[%clk 0:00:08.4]} 49... Qh6 {[%clk 0:00:34.7]}
50. Nd7+ {[%clk 0:00:07.9]} 50... Kc7 {[%clk 0:00:33.9]} 51. Ke7 {[%clk
0:00:08.5]} 51... Qe3+ {[%clk 0:00:31.4]} 0-1

[Event "Early-Titled-Tuesday-Blitz-May-07-2024"]
[Site "Chess.com"]
[Date "2024.05.07"]
[Round "11"]
[White "ilqar_74"]
[Black "Njal28"]
[Result "0-1"]
[WhiteElo "2837"]
[BlackElo "3104"]
[TimeControl "180+1"]
[EndTime "10:14:37 PDT"]
[Termination "Njal28 won by resignation"]

1. e4 {[%clk 0:03:00.9]} 1... c6 {[%clk 0:02:52.9]} 2. Nf3 {[%clk 0:03:00.9]}
2... d5 {[%clk 0:02:53.8]} 3. Nc3 {[%clk 0:03:01.4]} 3... Bg4 {[%clk 0:02:53.9]}
4. h3 {[%clk 0:03:01.4]} 4... Bxf3 {[%clk 0:02:53.2]} 5. Qxf3 {[%clk 0:03:01.4]}
5... e6 {[%clk 0:02:54.1]} 6. d4 {[%clk 0:03:01]} 6... dxe4 {[%clk 0:02:52.9]}
7. Qxe4 {[%clk 0:03:01.1]} 7... Nf6 {[%clk 0:02:53.3]} 8. Qd3 {[%clk 0:03:01.7]}
8... Nbd7 {[%clk 0:02:53.7]} 9. Be2 {[%clk 0:03:02.1]} 9... Bd6 {[%clk
0:02:54.2]} 10. O-O {[%clk 0:03:01.9]} 10... O-O {[%clk 0:02:54.9]} 11. Ne4
{[%clk 0:03:02.5]} 11... Nxe4 {[%clk 0:02:55]} 12. Qxe4 {[%clk 0:03:03.4]} 12...
Nf6 {[%clk 0:02:55.6]} 13. Qf3 {[%clk 0:03:04]} 13... Be7 {[%clk 0:02:54.5]} 14.
c3 {[%clk 0:03:04]} 14... Qd5 {[%clk 0:02:55]} 15. Re1 {[%clk 0:03:02.7]} 15...
Qxf3 {[%clk 0:02:55]} 16. Bxf3 {[%clk 0:03:03.6]} 16... Rfd8 {[%clk 0:02:55.5]}
17. Bg5 {[%clk 0:03:03.8]} 17... h6 {[%clk 0:02:55.4]} 18. Bxf6 {[%clk 0:03:04]}
18... Bxf6 {[%clk 0:02:56.3]} 19. Rad1 {[%clk 0:03:04.4]} 19... Kf8 {[%clk
0:02:56.8]} 20. Kf1 {[%clk 0:03:04.8]} 20... Rd6 {[%clk 0:02:57.4]} 21. Ke2
{[%clk 0:03:03.7]} 21... Rad8 {[%clk 0:02:58.1]} 22. g3 {[%clk 0:03:01.2]} 22...
R6d7 {[%clk 0:02:51.8]} 23. Be4 {[%clk 0:03:00.8]} 23... g6 {[%clk 0:02:51.3]}
24. h4 {[%clk 0:02:59.7]} 24... h5 {[%clk 0:02:51.2]} 25. Bf3 {[%clk 0:02:55.7]}
25... Be7 {[%clk 0:02:51.7]} 26. Rd3 {[%clk 0:02:53.1]} 26... Bd6 {[%clk
0:02:52.1]} 27. Red1 {[%clk 0:02:53.1]} 27... Bc7 {[%clk 0:02:52.7]} 28. c4
{[%clk 0:02:52.5]} 28... Bb6 {[%clk 0:02:51.8]} 29. d5 {[%clk 0:02:52.9]} 29...
cxd5 {[%clk 0:02:51.1]} 30. cxd5 {[%clk 0:02:53.2]} 30... e5 {[%clk 0:02:40.9]}
31. Bg2 {[%clk 0:02:32.4]} 31... e4 {[%clk 0:02:29]} 32. R3d2 {[%clk 0:02:10.9]}
32... Re8 {[%clk 0:02:23.7]} 33. Kf1 {[%clk 0:02:04.3]} 33... Rd6 {[%clk
0:02:14.6]} 34. Re2 {[%clk 0:02:01.2]} 34... f5 {[%clk 0:01:58.1]} 35. f3 {[%clk
0:02:00.4]} 35... e3 {[%clk 0:01:52.2]} 36. f4 {[%clk 0:02:00.5]} 36... Rc8
{[%clk 0:01:52]} 37. Bf3 {[%clk 0:01:57]} 37... Ke7 {[%clk 0:01:50.6]} 38. Kg2
{[%clk 0:01:56.2]} 38... Rdd8 {[%clk 0:01:48.5]} 39. Ree1 {[%clk 0:01:45.9]}
39... Kd6 {[%clk 0:01:38.2]} 40. Re2 {[%clk 0:01:42.5]} 40... Rc7 {[%clk
0:01:34.6]} 41. Rd3 {[%clk 0:01:41.4]} 41... Rdc8 {[%clk 0:01:32.7]} 42. Rd1
{[%clk 0:01:40.7]} 42... Rc2 {[%clk 0:01:31.2]} 43. Re1 {[%clk 0:01:36.4]} 43...
Rxe2+ {[%clk 0:01:19.5]} 44. Rxe2 {[%clk 0:01:37.3]} 44... Rc1 {[%clk
0:01:19.5]} 45. Kh2 {[%clk 0:01:33]} 45... Bd4 {[%clk 0:01:18.1]} 46. Kg2 {[%clk
0:01:30.6]} 46... a5 {[%clk 0:01:17.7]} 47. b3 {[%clk 0:01:29]} 47... b5 {[%clk
0:01:14.9]} 48. Kh2 {[%clk 0:01:15.5]} 48... a4 {[%clk 0:01:09.7]} 49. bxa4
{[%clk 0:01:10.9]} 49... bxa4 {[%clk 0:01:10.6]} 50. Kg2 {[%clk 0:01:10.4]}
50... a3 {[%clk 0:01:10.8]} 51. Kh2 {[%clk 0:01:10.8]} 51... Kc5 {[%clk
0:00:59.8]} 52. Kg2 {[%clk 0:01:09.5]} 52... Kd6 {[%clk 0:00:47.9]} 53. Kh2
{[%clk 0:01:09.5]} 53... Kd7 {[%clk 0:00:47.8]} 54. Kg2 {[%clk 0:01:09.4]} 54...
Rb1 {[%clk 0:00:45.8]} 55. Kh2 {[%clk 0:01:09.3]} 55... Rb2 {[%clk 0:00:43.1]}
56. Kg2 {[%clk 0:01:09.3]} 56... Bc3 {[%clk 0:00:40.6]} 57. d6 {[%clk
0:00:43.3]} 57... Kxd6 {[%clk 0:00:39]} 58. Kh3 {[%clk 0:00:35.3]} 58... Bd2
{[%clk 0:00:37.4]} 59. Rg2 {[%clk 0:00:34.9]} 59... Rxa2 {[%clk 0:00:35.4]} 60.
Rg1 {[%clk 0:00:35.5]} 60... Rc2 {[%clk 0:00:32.4]} 61. Be2 {[%clk 0:00:34]}
61... a2 {[%clk 0:00:32]} 62. Bd3 {[%clk 0:00:33.3]} 62... Rc1 {[%clk
0:00:31.9]} 0-1

[Event "Early-Titled-Tuesday-Blitz-May-07-2024"]
[Site "Chess.com"]
[Date "2024.05.07"]
[Round "11"]
[White "Goryachkina"]
[Black "jcibarra"]
[Result "0-1"]
[WhiteElo "2702"]
[BlackElo "2918"]
[TimeControl "180+1"]
[EndTime "10:14:37 PDT"]
[Termination "jcibarra won on time"]

1. e4 {[%clk 0:02:59.8]} 1... a6 {[%clk 0:03:00.9]} 2. Nf3 {[%clk 0:02:58]} 2...
b5 {[%clk 0:03:01.5]} 3. d4 {[%clk 0:02:57.3]} 3... Bb7 {[%clk 0:03:02]} 4. Bd3
{[%clk 0:02:56.7]} 4... e6 {[%clk 0:03:02]} 5. O-O {[%clk 0:02:56.1]} 5... d6
{[%clk 0:03:02.7]} 6. Nbd2 {[%clk 0:02:54.5]} 6... Ne7 {[%clk 0:03:03.2]} 7. Re1
{[%clk 0:02:54]} 7... Ng6 {[%clk 0:03:03.3]} 8. Nf1 {[%clk 0:02:53.7]} 8... Be7
{[%clk 0:03:03.7]} 9. Be3 {[%clk 0:02:50.8]} 9... Nd7 {[%clk 0:03:03.9]} 10. Ng3
{[%clk 0:02:49]} 10... h5 {[%clk 0:03:01.5]} 11. h3 {[%clk 0:02:47.7]} 11... h4
{[%clk 0:02:59.6]} 12. Nf1 {[%clk 0:02:47.5]} 12... c5 {[%clk 0:02:59.8]} 13. c3
{[%clk 0:02:47.2]} 13... Qc7 {[%clk 0:02:59]} 14. a4 {[%clk 0:02:42.2]} 14... c4
{[%clk 0:02:42]} 15. Bc2 {[%clk 0:02:41]} 15... e5 {[%clk 0:02:42.6]} 16. axb5
{[%clk 0:02:31.3]} 16... axb5 {[%clk 0:02:42.2]} 17. Rxa8+ {[%clk 0:02:31.2]}
17... Bxa8 {[%clk 0:02:43.1]} 18. Qd2 {[%clk 0:02:29.9]} 18... Nf6 {[%clk
0:02:39.4]} 19. d5 {[%clk 0:02:11.7]} 19... O-O {[%clk 0:02:34]} 20. Ra1 {[%clk
0:01:52]} 20... Bb7 {[%clk 0:02:32.5]} 21. Qe1 {[%clk 0:01:48.3]} 21... Nh5
{[%clk 0:02:23.2]} 22. Ra7 {[%clk 0:01:45.5]} 22... Nhf4 {[%clk 0:02:18.2]} 23.
Qa1 {[%clk 0:01:40.8]} 23... Qd7 {[%clk 0:01:41.4]} 24. Kh2 {[%clk 0:01:23.4]}
24... Rb8 {[%clk 0:01:41.3]} 25. b3 {[%clk 0:01:10.9]} 25... cxb3 {[%clk
0:01:37.7]} 26. Bxb3 {[%clk 0:01:11.1]} 26... Bd8 {[%clk 0:01:36.5]} 27. c4
{[%clk 0:00:59.6]} 27... bxc4 {[%clk 0:01:20.8]} 28. Bxc4 {[%clk 0:00:59.4]}
28... Qc8 {[%clk 0:01:21.7]} 29. Qa2 {[%clk 0:00:35]} 29... Nf8 {[%clk
0:01:11.4]} 30. N1d2 {[%clk 0:00:30.2]} 30... Nd7 {[%clk 0:01:09.4]} 31. Bb5
{[%clk 0:00:27]} 31... Nc5 {[%clk 0:01:00.1]} 32. Nc4 {[%clk 0:00:16.1]} 32...
Nxe4 {[%clk 0:00:54.7]} 33. Bxf4 {[%clk 0:00:14.1]} 33... exf4 {[%clk
0:00:54.8]} 34. Qe2 {[%clk 0:00:10.5]} 34... Bxd5 {[%clk 0:00:51.2]} 35. Ncd2
{[%clk 0:00:05.2]} 35... Qc5 {[%clk 0:00:46.3]} 36. Nxe4 {[%clk 0:00:03.1]}
36... Qxa7 {[%clk 0:00:40.6]} 37. Nxd6 {[%clk 0:00:03.2]} 37... Qe7 {[%clk
0:00:35.6]} 38. Qxe7 {[%clk 0:00:02.8]} 38... Bxe7 {[%clk 0:00:35.5]} 39. Nf5
{[%clk 0:00:03.2]} 39... Bxf3 {[%clk 0:00:23.5]} 40. Nxe7+ {[%clk 0:00:02.8]}
40... Kf8 {[%clk 0:00:22.9]} 41. gxf3 {[%clk 0:00:03]} 41... Kxe7 {[%clk
0:00:22.5]} 0-1

[Event "Early-Titled-Tuesday-Blitz-May-07-2024"]
[Site "Chess.com"]
[Date "2024.05.07"]
[Round "11"]
[White "kemelgallo"]
[Black "bancsoo"]
[Result "0-1"]
[WhiteElo "2655"]
[BlackElo "2863"]
[TimeControl "180+1"]
[EndTime "10:14:37 PDT"]
[Termination "bancsoo won by resignation"]

1. e4 {[%clk 0:03:00.9]} 1... e5 {[%clk 0:02:59.8]} 2. Nf3 {[%clk 0:02:59]} 2...
d6 {[%clk 0:03:00.1]} 3. Nc3 {[%clk 0:02:57.7]} 3... Nf6 {[%clk 0:02:59.9]} 4.
d4 {[%clk 0:02:57.7]} 4... exd4 {[%clk 0:03:00.8]} 5. Nxd4 {[%clk 0:02:58.6]}
5... Be7 {[%clk 0:03:01.2]} 6. g3 {[%clk 0:02:59]} 6... O-O {[%clk 0:03:01.7]}
7. Bg2 {[%clk 0:02:59.6]} 7... Re8 {[%clk 0:03:02.4]} 8. O-O {[%clk 0:02:59.8]}
8... Bf8 {[%clk 0:03:02.9]} 9. Re1 {[%clk 0:03:00.1]} 9... c6 {[%clk 0:03:02.8]}
10. a4 {[%clk 0:02:58.9]} 10... a5 {[%clk 0:03:02.9]} 11. h3 {[%clk 0:02:58.8]}
11... Na6 {[%clk 0:03:02.2]} 12. Nb3 {[%clk 0:02:55.7]} 12... Nb4 {[%clk
0:02:59.7]} 13. Bf4 {[%clk 0:02:50.7]} 13... d5 {[%clk 0:02:57.2]} 14. Rc1
{[%clk 0:02:21.7]} 14... dxe4 {[%clk 0:02:37.1]} 15. Qxd8 {[%clk 0:02:21.5]}
15... Rxd8 {[%clk 0:02:36.7]} 16. Bc7 {[%clk 0:02:17.6]} 16... Re8 {[%clk
0:02:26.8]} 17. Nxe4 {[%clk 0:01:59.8]} 17... Nxe4 {[%clk 0:02:20.2]} 18. Rxe4
{[%clk 0:01:59.2]} 18... Rxe4 {[%clk 0:01:58.8]} 19. Bxe4 {[%clk 0:02:00.1]}
19... Bxh3 {[%clk 0:01:59.1]} 20. Nxa5 {[%clk 0:01:55]} 20... Na6 {[%clk
0:01:48.5]} 21. Bb6 {[%clk 0:01:39.7]} 21... Bc5 {[%clk 0:01:39.1]} 22. Nc4
{[%clk 0:01:39.1]} 22... Be6 {[%clk 0:01:36.2]} 23. Bd3 {[%clk 0:01:04]} 23...
Bxc4 {[%clk 0:01:18.6]} 24. Bxc5 {[%clk 0:01:00.9]} 24... Bxd3 {[%clk
0:01:06.6]} 25. cxd3 {[%clk 0:01:01.8]} 25... Nxc5 {[%clk 0:01:07.2]} 26. Rxc5
{[%clk 0:01:02.1]} 26... Rxa4 {[%clk 0:01:07.9]} 27. Rc2 {[%clk 0:00:59]} 27...
f5 {[%clk 0:01:03.5]} 28. Kf1 {[%clk 0:00:58.2]} 28... Kf7 {[%clk 0:01:03.4]}
29. Ke2 {[%clk 0:00:58.7]} 29... Ke6 {[%clk 0:01:01.2]} 30. Ke3 {[%clk
0:00:59.2]} 30... g5 {[%clk 0:00:59.4]} 31. Re2 {[%clk 0:00:56.6]} 31... Kd5
{[%clk 0:00:44.5]} 32. Kd2 {[%clk 0:00:56.5]} 32... f4 {[%clk 0:00:30.2]} 33.
Re7 {[%clk 0:00:55.5]} 33... fxg3 {[%clk 0:00:28.9]} 34. fxg3 {[%clk 0:00:56.4]}
34... b5 {[%clk 0:00:27.5]} 35. Rxh7 {[%clk 0:00:55.2]} 35... Rg4 {[%clk
0:00:27.7]} 36. Rd7+ {[%clk 0:00:32.3]} 36... Kc5 {[%clk 0:00:24.3]} 37. Kc3
{[%clk 0:00:30.1]} 37... b4+ {[%clk 0:00:18]} 38. Kb3 {[%clk 0:00:27.3]} 38...
Rxg3 {[%clk 0:00:18.6]} 39. Rd8 {[%clk 0:00:26.2]} 39... g4 {[%clk 0:00:19.1]}
40. Rd7 {[%clk 0:00:25.2]} 40... Rf3 {[%clk 0:00:19.4]} 41. Kc2 {[%clk
0:00:20.8]} 41... g3 {[%clk 0:00:19.8]} 42. Rg7 {[%clk 0:00:20.7]} 42... Kd4
{[%clk 0:00:20.3]} 43. Rg4+ {[%clk 0:00:20.3]} 43... Ke3 {[%clk 0:00:20]} 44.
Kb3 {[%clk 0:00:17.7]} 44... c5 {[%clk 0:00:15.7]} 45. Kc4 {[%clk 0:00:17]}
45... Rf4+ {[%clk 0:00:16]} 0-1

[Event "Early-Titled-Tuesday-Blitz-May-07-2024"]
[Site "Chess.com"]
[Date "2024.05.07"]
[Round "11"]
[White "KorolDimitriy75"]
[Black "kuchma777"]
[Result "0-1"]
[WhiteElo "2386"]
[BlackElo "2511"]
[TimeControl "180+1"]
[EndTime "10:14:38 PDT"]
[Termination "kuchma777 won on time"]

1. d4 {[%clk 0:03:00.9]} 1... Nf6 {[%clk 0:02:59.4]} 2. c4 {[%clk 0:03:01.1]}
2... e6 {[%clk 0:02:59.8]} 3. Nc3 {[%clk 0:03:01.3]} 3... Bb4 {[%clk 0:02:59]}
4. Qc2 {[%clk 0:03:01.2]} 4... c5 {[%clk 0:02:58.7]} 5. dxc5 {[%clk 0:03:01.1]}
5... O-O {[%clk 0:02:59.3]} 6. Nf3 {[%clk 0:03:00.9]} 6... Re8 {[%clk
0:02:56.1]} 7. a3 {[%clk 0:02:53.1]} 7... Bxc5 {[%clk 0:02:55.5]} 8. Bg5 {[%clk
0:02:52.3]} 8... a5 {[%clk 0:02:41.3]} 9. e3 {[%clk 0:02:50.6]} 9... h6 {[%clk
0:02:24.8]} 10. Bh4 {[%clk 0:02:50.2]} 10... Nc6 {[%clk 0:02:22.6]} 11. Be2
{[%clk 0:02:49.3]} 11... b6 {[%clk 0:02:19.1]} 12. O-O {[%clk 0:02:48.7]} 12...
Bb7 {[%clk 0:02:19.3]} 13. Rfd1 {[%clk 0:02:48.1]} 13... Be7 {[%clk 0:02:16.8]}
14. Nb5 {[%clk 0:01:52.5]} 14... Ba6 {[%clk 0:01:10.9]} 15. Nd6 {[%clk
0:01:34.2]} 15... Rf8 {[%clk 0:01:10.9]} 16. Rd2 {[%clk 0:01:19.2]} 16... Ne8
{[%clk 0:01:04.5]} 17. Bxe7 {[%clk 0:01:02.7]} 17... Qxe7 {[%clk 0:01:03]} 18.
Rad1 {[%clk 0:01:02.6]} 18... Nxd6 {[%clk 0:00:57.3]} 19. Rxd6 {[%clk
0:01:03.5]} 19... Ra7 {[%clk 0:00:57.9]} 20. Qd2 {[%clk 0:00:52.6]} 20... Nb8
{[%clk 0:00:44.7]} 21. Rxb6 {[%clk 0:00:47.2]} 21... Bb7 {[%clk 0:00:33.9]} 22.
Nd4 {[%clk 0:00:14.7]} 22... d5 {[%clk 0:00:27.9]} 23. Nb5 {[%clk 0:00:12.8]}
23... Ra8 {[%clk 0:00:20.6]} 24. Bf3 {[%clk 0:00:12.8]} 24... Rd8 {[%clk
0:00:15]} 25. cxd5 {[%clk 0:00:05.1]} 25... Bxd5 {[%clk 0:00:15.4]} 26. Bxd5
{[%clk 0:00:04.5]} 26... Rxd5 {[%clk 0:00:10.1]} 27. Qe2 {[%clk 0:00:03.7]}
27... Rxd1+ {[%clk 0:00:06.5]} 28. Qxd1 {[%clk 0:00:04.6]} 28... Nd7 {[%clk
0:00:04.9]} 29. Rd6 {[%clk 0:00:04.1]} 29... Nc5 {[%clk 0:00:04.3]} 30. h3
{[%clk 0:00:03.1]} 30... Rb8 {[%clk 0:00:04.6]} 31. a4 {[%clk 0:00:02.7]} 31...
g6 {[%clk 0:00:02.2]} 32. b3 {[%clk 0:00:02.9]} 32... Ne4 {[%clk 0:00:02.6]} 33.
Rd7 {[%clk 0:00:01.2]} 33... Qf6 {[%clk 0:00:03.1]} 34. Qd4 {[%clk 0:00:00.5]}
34... Qxf2+ {[%clk 0:00:02.9]} 0-1